bitfinex/quotes_ETHUSD_20220226
["timestamp","ask_amount","ask_price","bid_price","bid_amount"]
[1645834810346,20.0,2790.0,2789.4,0.8965038]
[1645834810546,20.0,2790.0,2789.2,0.05652197]
[1645834810748,20.3,2790.0,2789.2,0.05652197]
[1645834811044,20.30286881,2790.0,2789.2,0.05652197]
[1645834811445,0.00416377,2789.7,2789.2,0.05652197]
[1645834811845,21.25703258,2790.0,2789.2,0.05652197]
[1645834812644,1.3504174,2789.7,2789.2,0.05652197]
[1645834812845,3.5,2789.6,2789.2,0.05652197]
[1645834813083,1.3504174,2789.7,2789.2,0.05652197]
[1645834813284,0.3,2789.6,2789.2,0.05652197]
[1645834813782,1.6504174,2789.7,2789.2,0.05652197]
[1645834814987,1.6504174,2789.7,2789.4,0.03154586]
[1645834816488,3.5,2789.6,2789.0,0.00470072]
[1645834816830,2.0,2789.6,2789.0,0.00470072]
[1645834817033,2.0,2789.6,2788.8,25.0]
[1645834817233,1.16810101,2789.0,2788.8,25.0]
[1645834818639,0.00286881,2789.5,2788.8,25.00470077]
[1645834818837,0.00286881,2789.6,2788.8,25.00470077]
[1645834819038,0.60286881,2789.7,2788.8,25.00470077]
[1645834819237,0.3,2789.7,2788.8,25.00470077]
[1645834819434,0.00286881,2789.9,2788.8,25.0]
[1645834819637,1.40916503,2789.6,2788.8,25.0]
[1645834819834,1.75033725,2789.6,2789.0,0.00470059]
[1645834820711,1.75033725,2789.6,2788.8,25.0]
[1645834820910,1.75320606,2789.6,2789.0,0.00470061]
[1645834821117,1.75033725,2789.6,2789.0,0.00470061]
[1645834821316,1.45033725,2789.6,2789.0,0.00470061]
[1645834821512,0.04117222,2789.6,2789.0,0.00470061]
[1645834821911,0.04117222,2789.6,2788.8,25.0]
[1645834822319,0.04117222,2789.6,2789.0,0.00470061]
[1645834823314,0.04117222,2789.6,2789.0,0.00940122]
[1645834823517,1.27098337,2789.1,2789.0,0.00470061]
[1645834824116,0.04117222,2789.6,2789.0,0.00470061]
[1645834824336,0.04117222,2789.6,2788.8,25.0]
[1645834824535,0.04117222,2789.6,2788.9,0.00394098]
[1645834825542,0.04117222,2789.6,2788.9,3.5]
[1645834825740,0.04117222,2789.6,2789.3,5.0]
[1645834826141,0.04117222,2789.6,2789.0,0.00394096]
[1645834826743,0.04117222,2789.6,2788.9,8.80151928]
[1645834826938,0.04117222,2789.6,2789.2,5.0]
[1645834827240,0.04117222,2789.6,2789.2,6.0]
[1645834828343,0.00702173,2789.8,2789.6,0.05103388]
[1645834828539,0.00415292,2789.8,2789.6,0.05103388]
[1645834828740,0.00415292,2789.8,2789.7,5.0]
[1645834828943,0.00415292,2789.8,2789.6,0.94739438]
[1645834829139,20.0,2790.0,2789.6,0.05103388]
[1645834829339,0.00415336,2789.8,2789.6,0.05103388]
[1645834830347,20.0,2790.0,2789.6,0.05103388]
[1645834830348,1.17473802,2789.7,2789.6,0.05103388]
[1645834830548,20.0,2790.0,2789.6,0.05103388]
[1645834830746,0.00415336,2789.8,2789.6,0.05103388]
[1645834830950,19.90415336,2790.0,2789.6,0.05103388]
[1645834831649,1.10862063,2789.9,2789.6,0.05103388]
[1645834832450,1.40862063,2789.9,2789.6,0.05103388]
[1645834833050,1.10862063,2789.9,2789.6,0.05103388]
[1645834833450,1.40862063,2789.9,2789.6,0.05103388]
[1645834833654,0.3,2789.9,2789.6,0.05103388]
[1645834834054,10.50415336,2790.0,2789.6,0.05103388]
[1645834834250,10.20415336,2790.0,2789.6,0.05103388]
[1645834834651,9.90415336,2790.0,2789.6,0.05103388]
[1645834834855,9.90415336,2790.0,2789.7,1.51623458]
[1645834835053,1.03464284,2789.9,2789.7,1.51623458]
[1645834835251,9.90415336,2790.0,2789.7,1.51623458]
[1645834835453,0.00414298,2789.9,2789.7,1.51623458]
[1645834835682,0.00414298,2789.9,2789.7,1.54879217]
[1645834835883,0.00414298,2789.9,2789.7,0.03255759]
[1645834836283,10.15415336,2790.0,2789.7,0.03255759]
[1645834836485,0.00414298,2789.9,2789.7,0.03255759]
[1645834837482,11.22564829,2790.0,2789.7,0.03255759]
[1645834837882,0.00414298,2789.9,2789.7,0.03255759]
[1645834838083,0.00414298,2789.9,2789.8,1.51620654]
[1645834838283,0.00414298,2789.9,2789.7,0.03255759]
[1645834838484,0.00414298,2789.9,2789.8,1.51615975]
[1645834838787,9.85415336,2790.0,2789.8,1.51615975]
[1645834839188,0.00414298,2789.9,2789.8,1.51615975]
[1645834839838,9.85415336,2790.0,2789.8,1.51615975]
[1645834840040,9.85415336,2790.0,2789.7,0.03255759]
[1645834840239,9.85415336,2790.0,2789.9,0.03242991]
[1645834840240,9.85829634,2790.0,2789.9,0.03242991]
[1645834841046,9.85415336,2790.0,2789.9,0.03242991]
[1645834841245,11.28809089,2790.0,2789.9,0.03242991]
[1645834842048,9.85415336,2790.0,2789.9,0.03242991]
[1645834842848,9.85415336,2790.0,2789.9,1.54851315]
[1645834843085,9.85415336,2790.0,2789.9,0.03242991]
[1645834844694,9.85415336,2790.0,2789.9,1.54845668]
[1645834844897,9.85415336,2790.0,2789.9,6.54845668]
[1645834845495,9.85415336,2790.0,2789.9,5.0]
[1645834845693,9.85415336,2790.0,2789.9,1.51593097]
[1645834846298,0.00286881,2790.6,2790.0,1.35404664]
[1645834846299,0.00333186,2790.1,2790.0,1.35404664]
[1645834846496,0.01619386,2790.6,2790.1,0.3622]
[1645834846694,0.01332505,2790.6,2790.5,5.0]
[1645834846944,0.01332505,2790.6,2790.5,6.87813097]
[1645834847150,0.53772824,2791.8,2790.5,7.87813097]
[1645834847151,0.00286881,2791.7,2790.5,7.87813097]
[1645834847342,1.22538907,2791.7,2790.6,1.51593097]
[1645834847541,1.22252026,2791.7,2790.6,1.51593097]
[1645834847743,0.00286881,2791.6,2790.6,1.51593097]
[1645834847945,0.00286881,2791.6,2790.6,10.67771806]
[1645834848145,0.00286881,2791.9,2791.0,5.0]
[1645834848344,0.49782462,2792.5,2791.1,5.18]
[1645834848742,0.00104418,2791.2,2791.1,6.18]
[1645834849341,0.00104418,2791.2,2791.1,5.18]
[1645834849943,0.00104418,2791.3,2791.1,5.18]
[1645834850146,0.00104418,2791.3,2790.6,1.2013]
[1645834850344,0.00104418,2791.3,2790.7,3.8069]
[1645834850793,1.7902,2791.9,2790.7,3.8069]
[1645834850995,0.3,2791.6,2790.7,3.8069]
[1645834851193,0.00345827,2791.1,2790.7,3.8069]
[1645834851796,1.40020475,2791.1,2790.7,3.8069]
[1645834851994,1.39674648,2791.1,2790.7,3.8069]
[1645834852399,0.00410134,2791.0,2790.7,3.8069]
[1645834853003,0.00410134,2791.0,2790.8,5.0]
[1645834853395,0.00410134,2791.0,2790.7,3.8069]
[1645834853595,1.18725239,2791.9,2790.7,3.8069]
[1645834853796,0.00410134,2791.0,2790.7,3.8069]
[1645834854198,0.00410134,2791.0,2790.9,5.0]
[1645834854454,0.00285695,2791.8,2790.7,3.8069]
[1645834854654,0.00285695,2791.8,2790.8,0.02553551]
[1645834854854,0.00410134,2791.0,2790.8,0.02553551]
[1645834855662,0.01640272,2791.4,2790.8,0.02553551]
[1645834855859,0.00369579,2791.0,2790.8,0.02553551]
[1645834856868,0.00285695,2791.8,2791.0,0.3622]
[1645834857069,5.50427632,2793.2,2791.1,3.5]
[1645834857070,0.00248935,2792.3,2791.1,3.5]
[1645834857267,0.00248935,2792.3,2791.1,7.5785]
[1645834858302,1.40253035,2791.8,2791.1,7.5785]
[1645834858502,1.40253035,2791.8,2791.0,4.9917]
[1645834858705,1.70253035,2791.8,2791.0,4.9917]
[1645834859205,1.70253035,2791.8,2791.0,1.1672]
[1645834859607,0.00406424,2791.6,2791.1,0.00470403]
[1645834860404,1.70253035,2791.8,2791.0,1.1672]
[1645834860607,0.00248935,2792.3,2791.0,1.1672]
[1645834860809,0.00406417,2791.6,2791.1,3.83420401]
[1645834861207,0.00406417,2791.6,2791.1,4.83420401]
[1645834861409,0.00406417,2791.6,2791.1,3.83420401]
[1645834861610,0.00406417,2791.6,2791.1,4.83420401]
[1645834861859,0.00406417,2791.6,2791.5,5.0]
[1645834861860,6.417e-05,2791.6,2791.5,5.0]
[1645834862051,0.00406417,2791.6,2791.4,6.25789]
[1645834862347,0.00406417,2791.6,2791.4,7.55789]
[1645834862754,0.00406417,2791.6,2791.4,7.19569]
[1645834862946,0.00406417,2791.6,2791.4,7.7913466]
[1645834863153,1.27089546,2792.0,2791.1,3.8295]
[1645834864447,0.00326291,2791.7,2791.3,0.00412712]
[1645834865251,0.72574466,2791.9,2791.2,0.03172803]
[1645834865688,0.00326285,2791.7,2791.3,0.0041271]
[1645834866487,0.72574466,2791.9,2791.2,0.03172803]
[1645834866690,0.7229,2791.9,2791.2,0.03172803]
[1645834866888,0.00326285,2791.7,2791.3,0.0041271]
[1645834867289,1.15678406,2791.4,2791.3,0.0041271]
[1645834867690,1.15678406,2791.4,2791.2,0.03172803]
[1645834867893,1.15678406,2791.4,2791.2,0.03612693]
[1645834868893,1.15678406,2791.4,2791.2,0.03172803]
[1645834869191,1.15678406,2791.4,2791.2,0.03612698]
[1645834869750,1.15678406,2791.4,2791.2,0.00439895]
[1645834870956,1.45678406,2791.4,2791.2,0.00439895]
[1645834871158,0.4229,2791.3,2791.2,0.00439895]
[1645834871356,0.4229,2791.3,2791.1,0.03247745]
[1645834871761,0.4229,2791.3,2791.2,0.00424967]
[1645834872458,0.4229,2791.3,2791.1,0.03247745]
[1645834872860,0.4229,2791.3,2791.1,0.03672718]
[1645834873295,0.8509,2791.3,2791.1,0.03672718]
[1645834874094,0.8509,2791.3,2791.1,0.03672724]
[1645834874301,1.39109775,2791.3,2791.1,0.03672724]
[1645834874496,1.39109775,2791.3,2790.2,1.1992]
[1645834874696,5.25614241,2791.3,2790.2,1.1992]
[1645834874895,1.75614241,2791.3,2790.2,1.1992]
[1645834875096,6.25614241,2791.3,2790.2,1.1992]
[1645834875497,2.75614241,2791.3,2790.2,1.1992]
[1645834875705,5.45370066,2791.3,2790.0,3.8282]
[1645834875907,11.03,2791.0,2789.6,1.26643388]
[1645834876102,0.3622,2791.1,2789.6,0.05103388]
[1645834876103,0.2188967,2790.8,2789.6,0.05103388]
[1645834876301,0.89679,2790.5,2789.6,0.05103388]
[1645834876501,0.428,2790.4,2789.6,0.05103388]
[1645834876701,1.26238928,2790.3,2789.6,0.05103388]
[1645834876937,0.378,2790.2,2789.6,0.05103388]
[1645834877136,0.678,2790.2,2789.6,0.05103388]
[1645834877740,0.56074575,2790.1,2788.9,1.1622]
[1645834877937,1.00852444,2790.0,2788.9,1.1622]
[1645834878243,0.678,2789.9,2789.0,1.51622767]
[1645834878439,0.6622,2790.2,2789.0,1.51622767]
[1645834878440,2.0902,2790.2,2789.0,1.51622767]
[1645834878736,0.728,2790.2,2789.0,1.51622767]
[1645834878943,0.428,2790.8,2789.5,5.0]
[1645834879138,1.428,2790.8,2789.6,1.51622767]
[1645834879338,0.7851,2790.7,2789.3,6.2034069]
[1645834879538,1.2131,2790.7,2789.4,1.51602203]
[1645834880036,1.12868816,2789.9,2789.4,1.51602203]
[1645834880235,1.12868816,2789.9,2789.3,1.1987]
[1645834880435,1.12868816,2789.9,2789.4,1.51601782]
[1645834881700,1.12868816,2789.9,2789.3,1.1987]
[1645834882100,1.12171633,2789.4,2789.3,1.1987]
[1645834882299,1.12171633,2789.4,2789.0,2.8686]
[1645834882500,1.12171633,2789.4,2789.1,1.51623719]
[1645834882703,0.4229,2789.3,2789.2,1.51623719]
[1645834883002,0.53200222,2790.2,2789.3,0.52097643]
[1645834883200,0.83200222,2790.2,2789.3,0.52097643]
[1645834884440,0.04041667,2789.9,2789.3,0.52097643]
[1645834885847,0.2552999,2789.9,2789.3,0.52097643]
[1645834886057,0.04041667,2789.9,2789.3,0.52097643]
[1645834886448,0.22706552,2789.9,2789.3,0.52097643]
[1645834886650,1.13220004,2789.8,2789.3,0.52097643]
[1645834887051,1.43220004,2789.8,2789.3,0.52097643]
[1645834887851,1.43220004,2789.8,2788.8,25.0]
[1645834888100,11.6394828,2789.7,2788.8,25.0]
[1645834888297,12.6394828,2789.7,2788.8,25.0]
[1645834888700,12.24560647,2789.6,2788.8,25.0]
[1645834888898,0.428,2789.5,2788.8,25.0]
[1645834889098,0.63732054,2789.5,2788.8,25.0]
[1645834889301,0.20307216,2789.4,2788.8,25.0]
[1645834889499,0.428,2789.3,2788.8,25.0]
[1645834889700,0.728,2789.3,2788.8,25.0]
[1645834890100,0.728,2789.3,2787.2,9.11540862]
[1645834890311,0.728,2789.3,2786.3,0.48362]
[1645834890312,0.18363256,2788.3,2785.4,1.80039066]
[1645834890518,0.01250056,2788.7,2785.5,1.48727428]
[1645834890519,5.0,2787.5,2785.5,1.48727428]
[1645834890708,0.98042,2787.1,2785.0,0.67538889]
[1645834890912,0.01209323,2786.2,2785.1,1.31943194]
[1645834891109,0.01209323,2786.2,2784.5,0.2739]
[1645834891110,1.0,2785.9,2785.2,1.31943194]
[1645834891312,1.0,2785.9,2784.6,0.13571062]
[1645834891313,1.428,2785.9,2784.6,0.13571062]
[1645834891509,3.5,2786.9,2784.6,0.13571062]
[1645834891510,0.428,2786.3,2785.4,5.0]
[1645834891712,0.428,2786.3,2784.9,0.5]
[1645834891713,0.428,2786.3,2785.8,5.0]
[1645834891978,1.0,2786.7,2786.2,5.0]
[1645834891979,0.96439495,2786.7,2786.2,5.0]
[1645834892165,0.428,2787.0,2786.6,5.0]
[1645834892366,1.0,2787.4,2786.6,5.0]
[1645834892367,0.428,2787.1,2786.6,5.0]
[1645834892967,0.428,2787.1,2786.0,0.3622]
[1645834893166,0.428,2787.1,2785.9,6.2484]
[1645834893368,0.428,2787.1,2785.9,1.2484]
[1645834893369,1.32708946,2786.5,2785.9,1.2484]
[1645834893566,3.68471464,2787.0,2785.9,1.2484]
[1645834893567,0.428,2786.4,2785.9,1.2484]
[1645834893766,1.3622,2786.9,2785.9,1.2484]
[1645834893767,0.428,2786.3,2785.9,1.2484]
[1645834893970,1.3622,2786.9,2785.9,1.2484]
[1645834893971,0.428,2786.2,2785.9,1.2484]
[1645834894167,0.428,2786.1,2785.9,1.2484]
[1645834894368,0.428,2786.0,2785.7,1.1601]
[1645834894598,0.428,2785.9,2785.6,5.0]
[1645834895368,0.428,2785.9,2785.3,2.6969]
[1645834896397,0.428,2785.9,2785.5,0.00470948]
[1645834897595,0.428,2785.9,2785.6,0.00470935]
[1645834898598,0.428,2785.9,2785.3,2.3347]
[1645834898599,0.97264057,2785.9,2785.3,2.3347]
[1645834898798,0.97264057,2785.9,2785.6,0.00470929]
[1645834898799,0.18290327,2785.7,2785.6,0.00470929]
[1645834899104,0.61090327,2785.7,2785.6,0.00470929]
[1645834899368,0.91090327,2785.7,2785.6,0.00470929]
[1645834899570,1.93217471,2785.7,2785.6,0.00470929]
[1645834899771,0.91090327,2785.7,2784.9,5.0]
[1645834899969,0.91090327,2785.7,2785.5,0.00470942]
[1645834899970,0.728,2785.7,2785.5,0.00470942]
[1645834900974,0.728,2785.7,2784.9,0.3622]
[1645834901174,0.728,2785.7,2785.5,0.00470544]
[1645834902174,0.728,2785.7,2784.9,5.0]
[1645834902675,0.728,2785.7,2785.5,0.00470544]
[1645834903292,0.728,2785.7,2784.9,5.0]
[1645834903695,0.728,2785.7,2785.5,0.00470544]
[1645834904492,0.728,2785.7,2784.6,0.13571062]
[1645834904493,0.728,2785.7,2784.9,5.0]
[1645834904695,1.90039169,2785.7,2784.9,5.0]
[1645834904894,0.728,2785.7,2785.5,0.00413003]
[1645834905698,0.728,2785.7,2784.9,5.0]
[1645834906098,0.728,2785.7,2785.5,0.00413003]
[1645834906955,0.728,2785.7,2784.9,5.0]
[1645834907150,0.728,2785.7,2785.5,0.00413003]
[1645834907549,0.728,2785.7,2784.7,0.3622]
[1645834907951,0.728,2785.7,2785.0,5.0]
[1645834909654,0.728,2785.7,2785.2,0.00419878]
[1645834910454,0.728,2785.7,2785.0,5.0]
[1645834910702,1.11948106,2786.0,2785.3,0.00419867]
[1645834910903,1.11948106,2786.0,2784.4,3.5]
[1645834911113,1.11948106,2786.0,2784.2,1.21846986]
[1645834911114,0.3622,2785.4,2784.2,1.21846986]
[1645834911310,1.19994102,2785.3,2783.7,1.2046]
[1645834911511,16.7362,2785.1,2784.1,0.00445863]
[1645834911708,16.7362,2785.1,2783.0,10.1751]
[1645834911709,1.3622,2784.6,2783.8,0.00445863]
[1645834911907,1.27814858,2784.2,2783.2,0.00445863]
[1645834912110,0.3622,2784.4,2783.2,0.00445863]
[1645834912111,0.428,2784.1,2783.2,0.00445863]
[1645834912304,1.32675,2784.0,2783.2,0.00445863]
[1645834912503,1.62675,2784.0,2783.2,0.00445863]
[1645834912705,0.728,2784.0,2783.6,5.0]
[1645834912906,0.428,2784.0,2783.4,0.3622]
[1645834913104,5.52188346,2785.0,2783.9,5.0]
[1645834913105,0.428,2784.6,2783.9,5.0]
[1645834913502,0.728,2784.6,2783.9,5.0]
[1645834913903,0.728,2784.6,2783.7,0.00445863]
[1645834914545,0.728,2784.6,2784.1,0.00419346]
[1645834914755,1.0,2784.3,2784.1,0.00419346]
[1645834914947,0.428,2784.2,2784.1,0.00419346]
[1645834915549,0.428,2784.2,2783.3,0.00445863]
[1645834915752,0.428,2784.2,2784.1,0.00419351]
[1645834916357,1.8163126,2784.2,2784.1,0.00419351]
[1645834916555,0.428,2784.2,2783.3,0.00445863]
[1645834916753,0.428,2784.2,2784.0,0.00418705]
[1645834917856,0.428,2784.2,2783.2,5.00445863]
[1645834917857,0.428,2784.2,2783.3,0.00445863]
[1645834918117,0.428,2784.2,2784.0,0.00418711]
[1645834919011,0.428,2784.2,2783.3,0.00445863]
[1645834919213,0.428,2784.2,2784.0,0.00418711]
[1645834919925,0.3,2784.4,2784.1,5.0]
[1645834920118,0.52624584,2784.7,2784.1,5.0]
[1645834920318,3.5,2785.1,2783.9,5.0]
[1645834920520,0.428,2784.8,2784.0,0.00864618]
[1645834920722,0.428,2784.7,2784.0,0.00864618]
[1645834920923,0.428,2784.7,2784.0,0.00418755]
[1645834921323,0.428,2784.7,2783.9,5.0]
[1645834921525,0.89854,2784.6,2783.9,5.0]
[1645834921846,1.428,2784.5,2784.2,0.00418727]
[1645834922650,1.428,2784.5,2783.9,5.0]
[1645834922847,1.428,2784.5,2784.2,0.00418727]
[1645834923847,1.428,2784.5,2783.9,5.0]
[1645834923848,1.60694273,2784.5,2783.9,5.0]
[1645834924048,1.60694273,2784.5,2784.2,0.00418722]
[1645834925055,0.3622,2784.4,2783.3,5.00445863]
[1645834925248,0.728,2784.4,2784.2,0.00418722]
[1645834925450,1.90694273,2784.4,2784.2,0.00418722]
[1645834925700,0.90694273,2784.4,2784.2,0.00418722]
[1645834925903,1.0,2784.3,2784.2,0.00418722]
[1645834926098,1.428,2784.3,2784.2,0.00418722]
[1645834926300,1.428,2784.3,2783.3,5.00445863]
[1645834926301,0.3622,2784.2,2783.3,0.00445863]
[1645834926502,0.89879,2784.0,2783.3,0.00445863]
[1645834926699,1.728,2783.9,2783.3,0.00445863]
[1645834927705,1.728,2783.9,2783.5,0.00419026]
[1645834928701,2.0902,2783.9,2783.3,0.00445863]
[1645834928904,1.728,2783.9,2783.6,0.00419015]
[1645834929550,0.728,2783.9,2783.6,0.00419015]
[1645834929750,1.0902,2783.9,2783.3,0.00445863]
[1645834930150,0.728,2783.9,2783.6,0.00419009]
[1645834930755,1.30468861,2783.9,2783.6,0.00419009]
[1645834930956,1.30468861,2783.9,2783.3,0.00445863]
[1645834930957,1.66688861,2783.9,2783.3,0.00445863]
[1645834931356,1.30468861,2783.9,2783.6,0.00418989]
[1645834932156,1.96688861,2783.9,2783.3,0.00445863]
[1645834932357,1.96688861,2783.9,2783.2,1.1969]
[1645834932557,1.60468861,2783.9,2783.6,0.00317438]
[1645834932960,0.17894273,2783.8,2783.6,0.00317438]
[1645834933199,0.428,2783.7,2783.6,0.00317438]
[1645834933401,1.428,2783.7,2783.2,1.1969]
[1645834933601,1.0,2783.6,2783.2,1.1969]
[1645834933800,1.428,2783.6,2783.2,1.1969]
[1645834934000,0.428,2783.6,2783.2,1.1969]
[1645834934501,0.428,2783.6,2783.3,0.40306601]
[1645834934901,1.0,2783.5,2783.3,0.40756675]
[1645834935101,0.428,2783.4,2783.3,0.00450074]
[1645834935300,1.428,2783.4,2783.3,0.00450074]
[1645834935505,0.728,2783.4,2783.3,0.00450074]
[1645834935705,1.728,2783.4,2783.3,0.00450074]
[1645834936105,1.728,2783.4,2783.2,0.0045008]
[1645834936304,1.0,2783.3,2783.2,0.0045008]
[1645834936503,1.428,2783.3,2783.2,0.0045008]
[1645834936705,0.428,2783.3,2783.2,0.0045008]
[1645834936968,0.428,2783.3,2782.9,0.00445863]
[1645834936969,1.60694273,2783.3,2782.9,0.00445863]
[1645834937168,1.60694273,2783.3,2782.5,0.00445863]
[1645834937169,1.08160995,2782.9,2782.5,0.00445863]
[1645834937370,1.0,2782.6,2782.2,0.01800973]
[1645834937571,4.2902,2782.8,2782.2,0.01800973]
[1645834937572,1.0,2782.3,2782.2,0.01800973]
[1645834937773,1.728,2782.3,2782.2,0.01800973]
[1645834937971,1.728,2782.3,2782.2,0.39115029]
[1645834938171,0.728,2782.3,2782.2,0.39115029]
[1645834938569,0.728,2782.3,2782.2,0.37314056]
[1645834938971,0.728,2782.3,2782.1,0.00439037]
[1645834939571,0.728,2782.3,2781.6,0.00445863]
[1645834939773,1.27177324,2782.3,2782.1,0.00414953]
[1645834940373,0.17894273,2782.2,2782.1,0.00414953]
[1645834940666,1.0,2782.5,2782.1,0.33509288]
[1645834940859,1.0,2782.6,2782.4,5.0]
[1645834940860,0.3,2782.6,2782.4,5.0]
[1645834941061,2.81803086,2783.2,2782.4,5.0]
[1645834941062,0.428,2783.2,2782.4,5.0]
[1645834941256,0.428,2783.2,2782.1,0.04450759]
[1645834941257,0.428,2783.2,2782.5,5.0]
[1645834941657,0.428,2783.2,2782.8,1.36550267]
[1645834941857,0.428,2783.2,2782.8,6.36550267]
[1645834942061,3.69754,2783.5,2783.1,5.0]
[1645834942062,1.0,2783.5,2783.1,5.0]
[1645834942261,1.0,2783.5,2783.4,5.0]
[1645834942658,1.0,2783.5,2783.4,6.69444185]
[1645834942856,1.0,2783.5,2783.4,1.69444185]
[1645834942857,0.95,2783.5,2783.4,1.69444185]
[1645834943058,0.428,2784.6,2783.4,1.69444185]
[1645834943256,0.428,2784.6,2783.9,1.44418012]
[1645834943460,0.9496,2784.4,2783.9,1.44418012]
[1645834943656,1.3118,2784.4,2783.9,1.44418012]
[1645834944055,1.6118,2784.4,2783.9,1.44418012]
[1645834944258,1.2496,2784.4,2783.9,1.44418012]
[1645834944655,1.2496,2784.4,2784.0,0.00440389]
[1645834945055,1.2496,2784.4,2784.0,5.00440389]
[1645834945255,1.2496,2784.4,2784.0,0.00440389]
[1645834945456,1.2496,2784.4,2783.8,0.00446003]
[1645834945663,1.6776,2784.4,2783.5,5.00446003]
[1645834945859,1.6776,2784.4,2784.1,0.00439462]
[1645834946065,0.89866,2784.3,2784.1,0.00439462]
[1645834946258,0.428,2784.2,2784.1,0.00439462]
[1645834946661,0.728,2784.2,2783.8,0.00446003]
[1645834946859,0.728,2784.2,2783.5,0.00446003]
[1645834947059,0.728,2784.2,2783.4,6.178]
[1645834947060,0.728,2784.2,2784.0,0.00439467]
[1645834947959,0.728,2784.2,2783.5,0.00446003]
[1645834948211,0.728,2784.2,2783.4,6.178]
[1645834948212,0.728,2784.2,2783.9,5.0]
[1645834948414,0.728,2784.2,2784.0,0.00439473]
[1645834949011,0.728,2784.2,2783.8,1.44260172]
[1645834949211,0.728,2784.2,2783.5,5.00446003]
[1645834949411,0.728,2784.2,2784.0,0.00439534]
[1645834949814,0.9496,2784.3,2784.1,5.0]
[1645834950616,1.61593016,2784.0,2783.9,5.0]
[1645834951219,1.61593016,2784.0,2783.9,6.15073997]
[1645834951417,1.61593016,2784.0,2783.9,6.4863526]
[1645834951724,1.61593016,2784.0,2783.9,1.15073997]
[1645834951942,1.61593016,2784.0,2783.9,1.48675529]
[1645834953751,1.61593016,2784.0,2783.9,1.43675529]
[1645834954148,1.61593016,2784.0,2783.9,1.10073997]
[1645834954349,1.61593016,2784.0,2783.8,0.00439876]
[1645834954350,1.91593016,2784.0,2783.8,0.00439876]
[1645834954548,0.428,2783.9,2783.8,0.00439876]
[1645834955150,0.428,2783.9,2783.5,5.00446003]
[1645834955350,0.428,2783.9,2783.7,0.00439888]
[1645834955811,0.428,2783.9,2783.8,0.29921406]
[1645834956003,1.91593016,2784.0,2783.8,0.29921406]
[1645834956202,1.91593016,2784.0,2783.7,5.00439888]
[1645834956203,1.61593016,2784.0,2783.7,5.00439888]
[1645834956408,1.91593016,2784.0,2783.5,5.0]
[1645834956606,0.428,2783.9,2783.7,0.00439975]
[1645834957404,0.428,2783.9,2783.0,0.00446003]
[1645834957604,0.3622,2783.8,2783.1,0.29939003]
[1645834957907,0.428,2783.7,2783.1,0.30385006]
[1645834958104,0.428,2783.7,2783.2,0.29939003]
[1645834958504,0.428,2783.7,2783.2,5.29939003]
[1645834958702,0.428,2783.7,2783.3,0.29939003]
[1645834958908,0.428,2783.7,2783.4,0.29939003]
[1645834959105,0.428,2783.7,2783.1,0.30385006]
[1645834959350,0.7902,2783.7,2783.2,0.29939003]
[1645834959555,0.7902,2783.7,2782.7,0.00446003]
[1645834959556,13.36911273,2783.6,2782.7,0.00446003]
[1645834959853,11.3922,2783.4,2782.8,0.27428644]
[1645834960051,11.8202,2783.3,2782.8,0.27428644]
[1645834960253,13.29914273,2783.3,2782.8,0.27428644]
[1645834960455,13.1202,2783.3,2782.8,0.27428644]
[1645834960653,0.17894273,2783.2,2782.8,0.27428644]
[1645834960859,0.428,2783.1,2782.8,0.27428644]
[1645834961060,13.55629,2783.1,2782.8,0.27428644]
[1645834961259,0.8992,2783.0,2782.5,0.00446003]
[1645834961468,0.8992,2783.0,2782.6,0.2439855]
[1645834961858,1.1992,2783.0,2782.4,0.00446003]
[1645834962059,12.2292,2783.0,2782.5,0.24086181]
[1645834962261,11.03,2782.8,2782.5,0.24086181]
[1645834962560,1.79866,2782.6,2782.1,0.04035806]
[1645834962759,2.09866,2782.6,2782.2,0.24092657]
[1645834962961,0.17894273,2782.5,2782.2,0.24092657]
[1645834963199,0.60694273,2782.5,2782.2,0.24092657]
[1645834963600,0.9496,2782.3,2782.2,0.24092657]
[1645834964005,1.2496,2782.3,2782.2,0.24092657]
[1645834964199,0.9496,2782.3,2782.2,0.24092657]
[1645834964403,1.0,2782.6,2782.2,0.24092657]
[1645834964598,0.3,2782.6,2782.2,0.24092657]
[1645834964799,0.47894273,2782.8,2782.3,1.13921812]
[1645834965007,0.47894273,2782.8,2782.6,5.0]
[1645834965008,0.3,2782.8,2782.6,5.0]
[1645834965203,0.3,2782.8,2782.7,0.24092657]
[1645834965402,1.19901,2783.2,2782.1,0.04498781]
[1645834965403,1.3,2783.0,2782.1,0.04498781]
[1645834965605,0.6622,2783.0,2782.2,5.22649961]
[1645834965806,0.9496,2782.8,2782.3,0.22649961]
[1645834966105,1.2496,2782.8,2782.4,0.00429203]
[1645834966309,1.2496,2782.8,2782.5,0.22649961]
[1645834966310,2.14877,2782.8,2782.5,0.22649961]
[1645834966512,1.19917,2782.8,2782.5,0.22649961]
[1645834966708,0.9496,2782.7,2782.5,0.22649961]
[1645834966946,1.19917,2782.8,2782.5,0.22649961]
[1645834967150,0.3,2782.8,2782.5,0.22649961]
[1645834967348,0.3,2782.8,2782.5,0.00429197]
[1645834967547,1.2496,2783.0,2782.5,0.00429197]
[1645834967749,2.73112502,2783.1,2782.5,0.00429197]
[1645834967952,0.9496,2782.8,2782.5,0.00429197]
[1645834968146,1.2496,2782.8,2782.5,0.00429197]
[1645834968347,1.2496,2782.8,2782.3,0.00446003]
[1645834968548,1.2496,2782.8,2782.7,0.00429175]
[1645834968747,2.14882,2782.8,2782.7,0.00429175]
[1645834968947,1.19922,2782.8,2782.7,0.00429175]
[1645834969152,1.3771623,2782.8,2782.7,0.00429175]
[1645834969347,2.3267623,2782.8,2782.7,0.00429175]
[1645834969546,2.6889623,2782.8,2782.3,0.00446003]
[1645834969750,3.3267623,2782.8,2782.6,0.00414455]
[1645834970150,2.3267623,2782.8,2782.6,0.00414455]
[1645834970348,2.0267623,2782.8,2782.6,0.00414455]
[1645834970609,0.53208502,2783.1,2782.7,0.2205761]